bitfinex/quotes_ETHUSD_20260203
["timestamp","ask_amount","ask_price","bid_price","bid_amount"]
[1770103245032,12.85855661,2324.3,2323.3,2.4489058]
[1770103245233,14.14371987,2324.2,2323.3,2.4489058]
[1770103245400,14.14371987,2324.2,2323.4,1.07600219]
[1770103245638,14.14371987,2324.2,2323.5,1.07595263]
[1770103245791,14.14371987,2324.2,2323.3,1.37288168]
[1770103246124,1.28596566,2324.2,2323.4,1.07600929]
[1770103246414,1.07641111,2324.3,2323.4,2.27194032]
[1770103246591,1.07641111,2324.3,2323.5,1.37288168]
[1770103247094,12.85775421,2324.1,2323.1,1.07611508]
[1770103247403,12.85775421,2324.1,2323.3,1.07605052]
[1770103247585,12.85885421,2324.0,2323.1,1.37288168]
[1770103247783,14.14363963,2323.9,2323.2,1.07609167]
[1770103247988,15.21945739,2323.9,2323.2,1.07609167]
[1770103248224,15.21945739,2323.9,2323.3,1.37288168]
[1770103248735,1.28588542,2323.9,2323.3,1.37288168]
[1770103248896,1.07686411,2324.0,2323.3,1.37288168]
[1770103249432,0.0011,2324.0,2323.3,1.37288168]
[1770103249592,13.93459266,2324.0,2323.3,1.37288168]
[1770103251414,13.93459266,2324.0,2323.3,2.44893668]
[1770103252715,13.93459266,2324.0,2323.3,1.076055]
[1770103252916,1.82375186,2323.9,2323.3,1.076055]
[1770103254612,1.82375186,2323.9,2322.8,13.17282461]
[1770103254817,0.0011,2324.0,2322.8,14.54570629]
[1770103255019,0.0011,2324.0,2323.0,12.09653738]
[1770103256700,0.0011,2324.0,2323.2,12.09653738]
[1770103256905,0.0011,2324.0,2323.1,2.44902993]
[1770103257111,0.0011,2324.0,2323.1,14.54556731]
[1770103257320,0.0011,2324.0,2323.2,1.88501603]
[1770103257528,0.0011,2324.0,2323.2,13.98155341]
[1770103257705,0.0011,2324.2,2323.3,13.70298936]
[1770103258022,0.0008024,2324.3,2323.3,13.70298936]
[1770103258023,0.0008024,2324.3,2323.6,12.09653738]
[1770103258233,0.0011,2324.4,2323.4,12.33010768]
[1770103258532,0.0011,2324.4,2323.6,12.09653738]
[1770103258718,0.0011,2324.4,2323.8,12.09653738]
[1770103259126,0.0011,2324.7,2323.8,12.09653738]
[1770103259424,0.0011,2324.7,2324.0,12.09653738]
[1770103260332,0.0011,2324.7,2324.1,13.46941906]
[1770103260534,2.29043063,2325.2,2324.3,12.09653738]
[1770103260535,0.31323172,2325.2,2324.3,12.09653738]
[1770103260694,1.07496615,2325.7,2324.3,12.09653738]
[1770103260695,11.84266563,2325.9,2324.6,12.09653738]
[1770103260899,0.0011,2325.9,2324.6,12.09653738]
[1770103261400,1.07596591,2325.9,2324.7,13.46941906]
[1770103261628,11.84156563,2325.7,2324.8,1.34694191]
[1770103261927,11.84156563,2325.7,2324.5,1.37288168]
[1770103262911,12.91654568,2325.7,2324.6,1.07545384]
[1770103265428,12.91654568,2325.7,2324.7,1.37288168]
[1770103266134,11.84156563,2325.5,2324.3,1.07558504]
[1770103266436,11.84156563,2325.3,2324.5,1.37288168]
[1770103266637,11.84156563,2325.1,2324.1,1.0756569]
[1770103266832,11.84156563,2325.1,2324.1,1.07568328]
[1770103267135,11.84156563,2325.1,2324.0,1.07569645]
[1770103267304,1.07531506,2324.9,2324.0,1.61356977]
[1770103267906,12.91688069,2324.9,2324.0,1.07572377]
[1770103268431,12.70393993,2324.8,2324.0,1.07572184]
[1770103268613,11.84156563,2324.8,2323.8,1.07579322]
[1770103268817,11.84156563,2324.8,2323.9,1.07577309]
[1770103269112,5.57561682,2325.0,2323.9,1.07577309]
[1770103269113,2.34965518,2325.0,2324.0,1.07572653]
[1770103269329,1.52746724,2324.9,2324.1,0.53787174]
[1770103269536,0.66506013,2324.9,2324.2,1.07563892]
[1770103269724,2.34965518,2325.0,2324.2,1.07563892]
[1770103269725,1.27435656,2325.0,2324.2,1.07563892]
[1770103271241,2.34963157,2325.0,2324.2,1.07563892]
[1770103271820,14.1911972,2325.0,2324.2,1.07563892]
[1770103272015,13.11592219,2325.0,2324.2,1.07563892]
[1770103272714,13.11592219,2325.0,2324.2,1.07663892]
[1770103272914,13.11592219,2325.0,2324.3,0.59171034]
[1770103273109,14.19119508,2325.0,2324.3,0.59171034]
[1770103273334,14.19119508,2325.0,2324.2,1.07663892]
[1770103273335,14.19119508,2325.0,2324.2,0.001]
[1770103275818,14.19119508,2325.0,2324.0,0.001]
[1770103276018,11.84156563,2324.8,2324.0,0.001]
[1770103276239,11.84156563,2324.6,2324.0,1.0767289]
[1770103277046,11.84156563,2324.6,2324.0,0.001]
[1770103277214,13.02572219,2324.5,2324.0,0.001]
[1770103278255,14.10124033,2324.5,2323.6,1.07591668]
[1770103279021,14.10124033,2324.5,2323.5,2.46958491]
[1770103279256,11.84156563,2324.3,2323.5,1.07592894]
[1770103280147,13.97739677,2324.2,2323.3,0.001]
[1770103283667,15.16144713,2324.5,2323.3,12.28925697]
[1770103283826,0.86471473,2324.4,2323.3,12.28925697]
[1770103284027,15.16144713,2324.5,2323.3,12.28925697]
[1770103284264,0.86460531,2324.4,2323.4,13.62479286]
[1770103284479,14.98791441,2324.5,2323.4,13.62479286]
[1770103284638,13.80375785,2324.5,2323.4,13.62479286]
[1770103284846,0.902,2324.5,2323.4,13.62479286]
[1770103285068,0.902,2324.5,2323.6,12.28825697]
[1770103285274,0.0011,2324.1,2323.6,12.28825697]
[1770103285540,0.0011,2324.1,2323.7,1.07587037]
[1770103285744,0.0011,2324.1,2323.8,1.76676089]
[1770103288275,0.0011,2324.1,2323.9,1.07577778]
[1770103288768,0.0011,2324.3,2323.9,1.07577778]
[1770103290865,0.0011,2324.3,2323.9,13.36403475]
[1770103291888,12.68475785,2325.1,2323.9,13.36403475]
[1770103292061,0.8657186,2325.0,2324.1,12.28825697]
[1770103292258,13.76747645,2324.9,2324.0,2.03359454]
[1770103292462,13.76747645,2324.8,2324.0,2.03359454]
[1770103292697,0.8657186,2324.7,2323.9,1.07577778]
[1770103292904,13.76747645,2324.7,2323.9,1.07577778]
[1770103293062,12.90175785,2324.7,2323.9,1.07577778]
[1770103293263,13.97703645,2325.0,2323.9,13.36403475]
[1770103293474,0.86612342,2324.9,2323.9,13.36403475]
[1770103293676,0.86612342,2324.8,2324.0,1.94339454]
[1770103293878,13.97703263,2325.0,2324.0,1.94339454]
[1770103294088,0.86644739,2324.9,2324.0,1.94339454]
[1770103294288,0.86644739,2324.8,2324.0,1.94339454]
[1770103294522,0.86644739,2324.7,2324.0,14.23165151]
[1770103294682,12.90175785,2325.0,2324.1,1.53074293]
[1770103294882,0.86690491,2324.9,2324.2,1.07563892]
[1770103295078,0.86690491,2324.8,2324.2,1.07563892]
[1770103295279,0.86690491,2324.7,2324.2,1.07563892]
[1770103295507,12.90175785,2325.0,2324.2,1.07563892]
[1770103295722,0.86750998,2324.9,2324.3,0.69089376]
[1770103295917,0.86750998,2324.8,2324.3,0.69089376]
[1770103296213,0.86750998,2324.7,2324.3,0.69089376]
[1770103296381,12.90175785,2325.0,2324.3,0.69089376]
[1770103296582,0.86760492,2324.9,2324.3,0.69089376]
[1770103296789,0.86760492,2324.8,2324.3,0.69089376]
[1770103297096,0.86760492,2324.7,2324.4,1.07554637]
[1770103297312,12.90175785,2325.0,2324.4,1.68242525]
[1770103297487,12.90175785,2324.8,2324.2,1.07561052]
[1770103297685,12.90175785,2324.6,2324.1,1.07564883]
[1770103298080,0.0011,2324.5,2324.1,1.07564883]
[1770103298282,0.0011,2324.5,2324.1,1.61350175]
[1770103298609,0.0011,2324.5,2324.2,1.07563474]
[1770103301198,0.0011,2324.5,2324.1,1.07568394]
[1770103304105,0.0011,2324.5,2323.7,4.30446884]
[1770103305532,0.0011,2324.5,2323.7,16.59272581]
[1770103305732,0.0011,2324.5,2323.8,1.76685962]
[1770103306099,0.0011,2324.5,2323.9,1.07577778]
[1770103310309,0.86786427,2324.4,2323.9,1.07577778]
[1770103310509,0.0011,2324.5,2323.9,1.07577778]
[1770103310809,0.86798618,2324.4,2323.9,1.07577778]
[1770103311007,0.0011,2324.5,2324.0,0.71457485]
[1770103311311,0.86798788,2324.4,2324.1,0.001]
[1770103311514,12.4754442,2324.5,2324.1,0.001]
[1770103311720,13.34251067,2324.4,2323.7,0.001]
[1770103311910,12.4743442,2324.2,2323.7,0.001]
[1770103312110,13.34251067,2324.1,2323.7,0.001]
[1770103312409,13.34251067,2324.1,2323.8,1.07582242]
[1770103312410,0.86816647,2324.0,2323.8,1.07582242]
[1770103312609,12.4743442,2324.3,2323.7,1.076839]
[1770103312828,0.86816549,2324.2,2323.7,1.076839]
[1770103313024,0.86816549,2324.1,2323.7,1.076839]
[1770103313203,13.91964023,2324.3,2323.7,1.076839]
[1770103313204,0.86816549,2324.0,2323.8,1.07582145]
[1770103313409,1.44529603,2324.3,2323.7,0.001]
[1770103313608,0.86827733,2324.2,2323.7,0.001]
[1770103313910,0.86827733,2324.1,2323.7,0.001]
[1770103314110,1.44529603,2324.3,2323.7,0.001]
[1770103315251,0.0011,2324.5,2323.7,12.80399807]
[1770103315542,0.0011,2324.5,2323.8,1.07582408]
[1770103316244,0.0011,2324.5,2323.8,13.87882215]
[1770103322713,12.4754442,2324.5,2323.8,1.07582408]
[1770103323358,12.4754442,2324.5,2323.8,12.80299807]
[1770103323359,0.0011,2324.5,2323.8,12.80299807]
[1770103323539,0.0011,2324.5,2324.0,12.80299807]
[1770103325341,0.0011,2324.5,2324.0,12.80399807]
[1770103325542,0.0011,2324.3,2324.1,1.07568521]
[1770103327917,0.0011,2324.7,2324.1,13.87868328]
[1770103328125,0.68769267,2325.3,2324.2,12.80299807]
[1770103328335,0.68769267,2325.3,2324.3,14.1908664]
[1770103330024,0.68769267,2325.3,2324.4,13.87854444]
[1770103332149,13.16203687,2325.3,2324.4,1.07554637]
[1770103334849,14.23717709,2325.3,2324.4,1.07554637]
[1770103337942,13.16203687,2325.3,2324.4,1.07554637]
[1770103338139,15.01588044,2325.3,2324.5,0.67656002]
[1770103338341,0.68769267,2325.3,2324.6,13.87845191]
[1770103338859,0.0011,2325.1,2324.6,13.87845191]
[1770103340577,0.0011,2325.5,2325.0,19.69682814]
[1770103340886,0.0011,2325.5,2325.1,1.96968281]
[1770103341049,0.0011,2325.5,2324.8,11.91452479]
[1770103344279,0.0011,2325.5,2324.9,12.98983985]
[1770103344480,0.0011,2325.5,2325.1,11.91452479]
[1770103345144,0.0011,2325.7,2325.1,11.91452479]
[1770103345744,0.0011,2325.7,2325.0,8.68330335]
[1770103345977,0.0011,2325.7,2325.1,0.97586184]
[1770103345978,12.73873076,2325.7,2325.1,0.97586184]
[1770103346275,0.0011,2325.7,2324.8,4.30126026]
[1770103346456,0.0011,2325.7,2324.9,11.91452479]
[1770103348280,12.73873076,2325.7,2324.8,4.30126026]
[1770103351282,12.73873076,2325.7,2324.8,4.30226026]
[1770103351581,0.0011,2325.5,2324.9,1.31599249]
[1770103351984,0.0011,2325.5,2324.9,13.23051728]
[1770103353873,0.0011,2325.7,2325.1,11.91452479]
[1770103354080,0.0011,2325.7,2325.1,12.81552479]
[1770103355389,0.0011,2325.9,2325.4,11.91452479]
[1770103355699,12.73873076,2325.9,2325.0,1.07526881]
[1770103357372,13.81358887,2325.9,2325.0,1.07526881]
[1770103358889,12.73763076,2325.6,2324.9,1.07529025]
[1770103360687,0.81012488,2325.5,2324.9,1.07529025]
[1770103360888,12.73763076,2325.6,2324.9,1.6130453]
[1770103361488,0.81038315,2325.5,2324.9,1.6130453]
[1770103361691,12.73763076,2325.6,2324.9,1.6130453]
[1770103361891,0.81039811,2325.5,2324.9,1.6130453]
[1770103362090,12.73763076,2325.6,2324.9,1.6130453]
[1770103362293,0.81041561,2325.5,2324.9,1.6130453]
[1770103362586,13.81262306,2325.6,2325.0,0.59153056]
[1770103362801,0.81052496,2325.5,2324.9,1.6130453]
[1770103363009,13.81262306,2325.6,2324.9,1.6130453]
[1770103363170,13.54815531,2325.5,2324.8,1.07633976]
[1770103363370,12.73763076,2325.3,2324.8,1.07633976]
[1770103364370,12.73763076,2325.3,2325.1,0.001]
[1770103364691,0.81070994,2325.2,2324.8,0.001]
[1770103364864,1.35483407,2325.1,2324.8,0.001]
[1770103365261,1.35483407,2325.1,2324.2,16.218062]
[1770103365262,12.73763076,2324.9,2324.2,0.001]
[1770103365493,13.54847491,2324.8,2323.9,1.07677326]
[1770103365808,13.54847491,2324.7,2324.0,1.07672417]
[1770103365959,0.81084415,2324.6,2324.0,1.07672417]
[1770103366391,12.73763076,2324.5,2323.9,0.001]
[1770103366590,12.73763076,2324.3,2323.7,0.001]
[1770103367697,13.81322376,2324.3,2323.7,0.001]
[1770103367866,12.73763076,2324.3,2323.7,0.001]
[1770103371297,13.81322761,2324.3,2323.7,0.001]
[1770103371502,15.67385993,2324.3,2323.7,0.001]
[1770103376105,2.93622597,2324.3,2323.7,0.001]
[1770103376806,12.8839593,2324.5,2323.9,0.001]
[1770103377219,3.3323416,2324.6,2323.9,0.001]
[1770103377220,0.0011,2324.1,2323.9,0.001]
[1770103378115,0.0011,2324.1,2323.9,11.76424516]
[1770103380020,0.0011,2324.1,2323.9,12.83999704]
[1770103380222,0.0011,2324.1,2323.9,14.55442638]
[1770103381411,0.0011,2324.1,2323.9,1.71442934]
[1770103381725,0.0011,2324.1,2323.8,1.07581819]
[1770103382795,0.0011,2324.1,2323.9,1.07577446]
[1770103383190,0.0011,2324.3,2323.9,12.83901962]
[1770103383391,13.7408245,2324.9,2324.1,1.07568521]
[1770103383596,13.7408245,2324.9,2323.9,1.07576096]
[1770103383796,13.7408245,2324.9,2324.0,1.07572681]
[1770103383993,12.8839593,2324.7,2323.7,0.001]
[1770103384200,12.8839593,2324.5,2323.7,0.001]
[1770103384398,12.8839593,2324.3,2323.7,0.001]
[1770103384599,12.8839593,2324.1,2323.6,0.001]
[1770103384814,12.8839593,2323.9,2323.3,0.001]
[1770103385400,13.95977953,2323.9,2323.3,0.001]
[1770103386437,12.8839593,2323.5,2323.0,0.001]
[1770103387139,14.17235523,2323.5,2323.0,0.001]
[1770103387635,15.24833068,2323.5,2323.0,0.001]
[1770103389842,15.24833068,2323.5,2323.2,0.001]
[1770103390422,15.24833068,2323.5,2322.7,0.001]
[1770103394424,1.90740263,2323.4,2322.7,0.001]
[1770103394624,0.902,2323.3,2322.7,0.001]
[1770103397566,1.07577778,2323.9,2322.7,11.76424516]
[1770103397846,0.902,2323.6,2322.9,11.76324516]
[1770103398043,0.902,2323.8,2322.9,11.76324516]
[1770103398244,0.83151914,2323.7,2322.9,11.76324516]
[1770103398417,0.902,2323.8,2323.0,13.05722015]
[1770103398942,0.902,2323.9,2323.0,13.05722015]
[1770103399124,0.83146948,2323.8,2323.0,13.05722015]
[1770103399328,1.9777874,2323.9,2323.1,12.83939341]
[1770103399520,0.83151135,2323.8,2323.1,12.83939341]
[1770103399721,0.902,2323.9,2323.2,1.84379614]
[1770103399920,0.83151162,2323.8,2323.2,13.6070413]
[1770103400253,1.97776473,2324.0,2323.2,13.6070413]
[1770103400413,0.83151611,2323.9,2323.2,13.6070413]
[1770103400619,0.83151611,2323.8,2323.2,13.6070413]
[1770103400847,1.97776473,2324.0,2323.3,1.46831896]
[1770103401050,0.83151441,2323.9,2323.3,1.46831896]
[1770103401252,0.83151441,2323.8,2323.3,1.46831896]
[1770103401424,1.97776473,2324.0,2323.3,2.54435011]
[1770103401621,0.83158847,2323.9,2323.3,2.54435011]
[1770103401824,0.83158847,2323.8,2323.3,2.54435011]
[1770103402120,1.97776473,2324.0,2323.3,2.54435011]
[1770103402353,0.83194896,2323.9,2323.3,2.54435011]
[1770103402551,0.0011,2324.1,2323.3,15.19700626]
[1770103402729,0.83203931,2324.0,2323.4,12.65365615]
[1770103402921,0.0011,2324.1,2323.4,12.65365615]
[1770103403127,0.83205952,2324.0,2323.4,12.65365615]
[1770103403424,0.0011,2324.1,2323.5,1.51980063]
[1770103403627,0.83266228,2324.0,2323.6,1.07591668]
[1770103403835,0.0011,2324.1,2323.6,1.07591668]
[1770103404039,0.83280017,2324.0,2323.6,1.07591668]
[1770103404261,0.0011,2324.1,2323.6,1.07591668]
[1770103404434,0.83284808,2324.0,2323.6,1.07591668]
[1770103404632,0.0011,2324.1,2323.6,3.03124675]
[1770103404837,0.8328613,2324.0,2323.6,3.03124675]
[1770103405039,0.0011,2324.1,2323.6,3.03124675]
[1770103405259,0.83287414,2324.0,2323.6,3.03124675]
[1770103405468,0.0011,2324.1,2323.6,3.03124675]
[1770103405671,0.83286238,2324.0,2323.7,0.88548691]
[1770103405840,4.30202086,2324.5,2323.7,0.88548691]
[1770103405841,1.97745971,2324.6,2323.8,12.65265615]
[1770103406474,0.902,2324.6,2323.8,12.65265615]
[1770103406770,0.902,2324.6,2323.9,1.37481431]
[1770103407270,13.30258018,2324.6,2323.9,1.37481431]
[1770103409431,13.47608028,2324.5,2323.9,1.37481431]
[1770103409631,13.47608028,2324.5,2323.7,0.21]
[1770103409832,13.47608028,2324.5,2323.8,1.07581959]
[1770103410270,13.47608028,2324.5,2323.9,1.07577153]
[1770103410638,13.47608028,2324.5,2323.8,1.0757903]
[1770103410966,13.47608028,2324.5,2323.8,2.31269808]
[1770103411470,13.47608028,2324.5,2323.8,1.0757903]
[1770103413159,1.0755001,2324.5,2323.8,13.72844645]
[1770103413872,13.47608028,2324.5,2323.8,1.0757903]
[1770103414162,13.47608028,2324.5,2323.7,1.28583805]
[1770103414467,12.40058018,2324.4,2323.7,1.28583805]
[1770103414693,13.47607088,2324.6,2323.7,15.76270739]
[1770103414870,0.902,2324.5,2323.7,15.76270739]
[1770103415272,13.47580275,2325.1,2324.0,12.65265615]
[1770103415474,0.902,2324.8,2324.0,12.65265615]
[1770103415674,0.902,2324.8,2324.1,2.04439278]
[1770103415988,0.685,2324.8,2324.2,1.07563892]
[1770103416190,0.0011,2324.5,2324.2,1.07563892]
[1770103417503,0.0011,2324.5,2324.1,15.77270411]
[1770103417871,0.0011,2324.5,2324.1,3.12004796]
[1770103418071,0.0011,2324.5,2324.2,0.74228918]
[1770103418300,12.40058018,2324.9,2324.2,0.74228918]
[1770103418489,1.07522442,2325.1,2324.2,0.74228918]
[1770103418490,0.90106573,2325.0,2324.2,13.39494533]
[1770103418675,13.30164591,2325.0,2324.2,13.39494533]
[1770103420097,13.30164591,2325.0,2324.3,1.07559265]
[1770103420270,13.30164591,2325.0,2324.4,1.87729086]
[1770103421473,0.90106573,2325.0,2324.4,14.52994701]
[1770103422176,12.40058018,2324.9,2324.4,1.87729086]
[1770103422496,12.40058018,2324.7,2324.2,1.07563624]
[1770103424488,12.40058018,2324.9,2324.0,13.72838764]
[1770103424977,12.40058018,2324.9,2324.0,1.07573149]
[1770103425178,12.40058018,2324.9,2324.1,0.55886575]
[1770103425512,12.40058018,2324.1,2323.4,0.001]
[1770103425801,0.8317387,2324.0,2323.4,1.07697725]
[1770103426002,13.30258018,2324.1,2323.4,1.07697725]
[1770103426003,13.30258018,2324.1,2323.4,0.001]
[1770103426305,0.83174034,2324.0,2323.4,0.001]
[1770103426500,1.07573944,2324.0,2323.4,0.001]
[1770103427308,0.83247398,2323.9,2323.4,0.001]
[1770103427605,13.47631962,2324.0,2323.4,0.001]
[1770103427899,0.83253089,2323.9,2323.4,0.001]
[1770103428107,0.83269495,2323.8,2323.6,0.001]
[1770103428272,13.47631962,2324.0,2323.6,0.001]
[1770103428478,0.83269478,2323.9,2323.6,0.001]
[1770103428703,15.47744075,2324.0,2323.6,0.001]
[1770103428905,0.83269448,2323.9,2323.6,0.001]
[1770103429100,0.83278884,2323.8,2323.6,0.001]
[1770103429278,15.47744075,2324.0,2323.6,0.001]
[1770103429479,0.8327579,2323.9,2323.6,0.001]
[1770103429706,15.47744075,2324.0,2323.6,0.001]
[1770103429912,0.83275787,2323.9,2323.6,0.001]
[1770103430206,15.47744075,2324.0,2323.6,0.001]
[1770103430411,0.83272524,2323.9,2323.6,0.001]
[1770103430590,15.47744075,2324.0,2323.6,0.001]
[1770103430790,0.83272532,2323.9,2323.6,0.001]
[1770103430987,12.4640292,2324.5,2323.6,12.28791465]
[1770103431187,0.0011,2324.6,2323.8,12.92829616]
[1770103431510,1.97823246,2325.3,2324.1,12.92829616]
[1770103431712,13.04899577,2325.2,2324.1,12.92829616]
[1770103431901,13.04899577,2325.1,2324.1,12.92829616]
[1770103432106,0.83238023,2325.0,2324.1,12.92829616]
[1770103432305,0.83238023,2325.0,2324.2,1.29282962]
[1770103432509,13.29202311,2324.7,2323.8,1.07582408]
[1770103432812,0.83238023,2324.6,2323.8,1.07582408]
[1770103432987,12.21661554,2324.4,2323.6,0.001]
[1770103433185,13.95099577,2324.3,2323.6,0.001]
[1770103433516,12.21661554,2324.1,2323.6,0.001]
[1770103433811,0.83238023,2324.0,2323.6,0.001]
[1770103434014,0.83238023,2323.9,2323.6,0.001]
[1770103434214,13.61171512,2324.1,2323.6,0.001]
[1770103434526,13.61171512,2324.1,2323.4,0.001]
[1770103434527,13.04899907,2324.0,2323.4,0.001]
[1770103434706,14.12477685,2323.9,2323.4,0.001]
[1770103434907,2.67517233,2323.8,2323.4,0.001]
[1770103435116,0.83238353,2323.7,2323.4,0.001]
[1770103435312,0.83238353,2323.6,2323.4,0.001]
[1770103435513,0.83238353,2323.5,2323.4,0.001]
[1770103438218,1.07589423,2323.7,2323.4,0.001]
[1770103438391,0.83450081,2323.6,2323.4,0.001]
[1770103438717,5.69791501,2324.1,2323.4,0.001]
[1770103438932,2.81229728,2324.0,2323.4,0.001]
[1770103439087,0.83456579,2323.9,2323.4,0.001]
[1770103439285,0.83456579,2323.8,2323.4,0.001]
[1770103439512,1.97773149,2324.0,2323.4,0.001]
[1770103439817,0.83438149,2323.9,2323.4,0.001]
[1770103440015,13.29216191,2324.5,2323.4,0.001]
[1770103440184,17.42086328,2324.4,2323.4,0.001]
[1770103441190,17.42086328,2324.4,2323.6,0.001]
[1770103441421,14.06625651,2324.3,2323.6,0.001]
[1770103441916,1.07563892,2324.2,2323.6,0.001]
[1770103445525,12.21661554,2324.2,2323.6,0.001]
[1770103446114,12.21661554,2324.2,2323.4,0.001]
[1770103446315,12.21661554,2324.2,2323.2,0.211]
[1770103446316,12.21661554,2324.0,2323.2,0.001]
[1770103446628,12.21661554,2323.8,2323.2,0.001]
[1770103447706,1.07587037,2323.7,2323.2,0.001]
[1770103448228,0.902,2323.6,2323.2,0.001]
[1770103450633,1.97792713,2323.6,2323.2,0.001]
[1770103451011,1.07584667,2323.8,2323.2,0.001]
[1770103451215,0.902,2323.7,2323.2,0.001]
[1770103453448,0.902,2323.7,2323.4,0.001]
[1770103454217,1.07584667,2323.8,2323.4,0.001]
[1770103454418,0.902,2323.7,2323.4,0.001]
[1770103454744,1.07584667,2323.8,2323.4,0.001]
[1770103454948,1.97784667,2323.8,2323.4,0.001]
[1770103455318,2.72822554,2323.8,2323.4,0.001]
[1770103460254,12.33395951,2323.6,2322.6,0.0008024]
[1770103460554,12.33395951,2323.6,2322.2,0.001]
[1770103460555,12.33395951,2323.4,2322.3,0.001]
[1770103460754,12.33395951,2323.4,2322.1,0.001]
[1770103460755,12.33395951,2323.0,2322.1,0.001]
[1770103460957,12.33395951,2322.8,2322.1,0.001]
[1770103461262,14.09744098,2322.7,2321.5,11.81592364]
[1770103461429,12.33395951,2322.5,2321.3,11.81592364]
[1770103461624,13.19544098,2322.4,2321.3,11.81592364]
[1770103461944,0.86148147,2322.3,2321.5,12.89280451]
[1770103462147,0.86148147,2322.2,2321.5,12.89280451]
[1770103462328,0.86148147,2322.1,2321.5,12.89280451]
[1770103462528,13.84610361,2322.6,2321.5,12.89280451]
[1770103462730,1.07647261,2322.4,2321.5,11.81592364]
[1770103462944,0.85996278,2322.3,2321.5,11.81592364]
[1770103463154,0.85996278,2322.2,2321.5,11.81592364]
[1770103463473,0.85996278,2322.1,2321.5,11.81592364]
[1770103463752,1.07647261,2322.4,2321.5,11.81592364]
[1770103463923,1.5449047,2322.3,2321.5,11.81592364]
[1770103464123,0.85918736,2322.2,2321.5,11.81592364]
[1770103464348,0.68571734,2322.3,2321.5,11.81592364]
[1770103464657,0.85856132,2322.2,2321.5,11.81592364]
[1770103464868,1.07656532,2322.2,2321.5,11.81592364]
[1770103465069,0.60684148,2322.1,2321.5,12.89281183]
[1770103465243,1.07656532,2322.2,2321.5,12.89281183]
[1770103465661,1.47481036,2322.5,2321.7,11.81592364]
[1770103465965,1.97836686,2322.7,2321.9,11.81672684]
[1770103466134,0.85810446,2322.6,2321.9,11.81672684]
[1770103466334,1.97836686,2322.7,2321.9,11.81672684]
[1770103466545,0.85781377,2322.6,2321.9,11.81672684]
[1770103466767,1.97836686,2322.7,2321.9,11.81672684]
[1770103466961,1.4861701,2322.6,2322.1,0.001]
[1770103467172,0.62835473,2322.6,2322.1,0.001]
[1770103468647,4.30485238,2323.0,2322.1,11.81692364]
[1770103468856,1.07628723,2322.8,2322.1,12.89353429]
[1770103469944,17.54044193,2323.2,2322.1,12.89353429]
[1770103470149,1.93347597,2323.1,2322.1,12.89353429]
[1770103470348,1.07614825,2323.1,2322.1,12.89353429]
[1770103470644,3.47550726,2323.1,2322.2,1.72001169]
[1770103470855,1.97813144,2323.2,2322.3,11.81592364]
[1770103471061,0.85748046,2323.1,2322.4,12.89239625]
[1770103471356,1.97813144,2323.2,2322.4,12.89239625]
[1770103471671,0.85698369,2323.1,2322.4,12.89239625]
[1770103471877,14.48252168,2323.3,2322.2,1.72001169]
[1770103472045,13.1909417,2323.2,2322.2,1.07654538]
[1770103472243,13.1909417,2323.1,2322.1,11.81692364]
[1770103472477,0.85698219,2323.0,2322.2,1.07655541]
[1770103473549,1.93318597,2323.0,2322.2,12.89247905]
[1770103473751,1.07620378,2323.0,2322.3,1.71999025]
[1770103474348,1.07620378,2323.0,2322.1,1.07758398]
[1770103475456,1.93430652,2322.9,2322.1,1.07758398]
[1770103475661,1.07626241,2322.9,2322.1,1.07758398]
[1770103476190,1.07626241,2322.9,2322.1,0.001]
[1770103476480,1.07626241,2322.9,2322.1,11.81692364]
[1770103476652,2.84776282,2322.9,2322.1,13.53713554]
[1770103477571,1.77150041,2322.9,2322.2,12.89248896]
[1770103477771,1.07617837,2323.1,2322.2,12.89248896]
[1770103477973,0.85825168,2323.0,2322.2,12.89248896]
[1770103478283,1.07617837,2323.1,2322.2,12.89248896]
[1770103478451,0.85836707,2323.0,2322.2,12.89248896]
[1770103478658,2.14856243,2323.3,2322.4,11.81592364]
[1770103478859,0.85835656,2323.2,2322.4,11.81592364]
[1770103479157,0.85835656,2323.1,2322.4,11.81592364]
[1770103479354,2.14856243,2323.3,2322.4,11.81592364]
[1770103479563,0.0011,2322.8,2322.4,12.89238993]
[1770103479769,0.0011,2322.8,2322.3,1.07651551]
[1770103484565,0.0011,2322.8,2322.2,0.001]
[1770103484566,12.33505951,2322.8,2322.2,0.001]
[1770103484767,13.19371902,2322.7,2322.2,0.001]
[1770103484974,13.41043212,2322.4,2321.6,1.07684196]
[1770103485281,1.77163226,2322.3,2321.6,12.8927656]
[1770103485479,1.0764606,2322.5,2321.6,12.8927656]
[1770103485788,0.86007201,2322.4,2321.6,12.8927656]
[1770103485968,0.86007201,2322.3,2321.6,12.8927656]
[1770103486283,1.0764606,2322.5,2321.6,12.8927656]
[1770103486591,0.86036589,2322.4,2321.6,12.8927656]
[1770103486888,0.86036589,2322.3,2321.6,12.8927656]
[1770103487089,1.0764606,2322.5,2321.6,12.8927656]
[1770103487262,2.6319613,2322.4,2321.6,12.8927656]
[1770103487464,0.86036662,2322.3,2321.6,12.8927656]
[1770103488585,0.902,2322.7,2321.6,12.8927656]
[1770103488767,0.86098906,2322.6,2321.6,12.8927656]
[1770103488952,0.86098906,2322.5,2321.6,12.8927656]
[1770103489159,1.97834249,2322.7,2321.8,12.89267443]
[1770103489357,0.86098562,2322.6,2321.8,12.89267443]
[1770103489557,0.86098562,2322.5,2321.8,12.89267443]
[1770103489766,0.86156661,2322.4,2321.8,12.89267443]
[1770103489972,1.97834249,2322.7,2321.8,12.89267443]
[1770103490174,0.86156643,2322.6,2321.9,13.70789439]
[1770103490408,0.86156643,2322.5,2321.9,13.70789439]
[1770103490588,0.86156643,2322.4,2321.9,13.70789439]
[1770103490906,2.60680178,2322.7,2321.9,13.70789439]
[1770103491104,1.93818381,2322.6,2322.0,1.07665805]
[1770103491307,0.86179903,2322.5,2322.0,2.98580204]
[1770103491504,0.902,2322.7,2322.1,12.24169433]
[1770103491896,1.97834073,2322.7,2322.0,2.98680204]
[1770103493802,0.902,2322.7,2322.0,15.22849637]
[1770103494009,0.902,2322.7,2322.1,1.97453021]
[1770103494213,0.902,2322.7,2322.1,14.21622454]
[1770103494926,0.0011,2322.8,2322.1,14.21622454]
[1770103495324,1.0773922,2322.8,2322.1,14.21622454]
[1770103495733,0.0011,2322.8,2322.2,1.07656532]
[1770103495898,0.0011,2322.8,2322.2,3.03658807]
[1770103497002,0.0011,2322.8,2322.2,1.96002275]
[1770103497628,0.0011,2322.8,2322.2,3.03656833]